Workbook

Sheet N 1 աղյուսակ N7
G1: ՀավելվածN 1
G2: Աղյուսակ N 7
A3: Հաշվետվություն
A4: «Հայաստանի Հանրապետության 2023 թվականի պետական բյուջեի մասին» ՀՀ օրենքի նախագծի N 1 հավելվածով ՀՀ համայնքներին (այդ թվում՝ Երևան համայնքին) տրամադրվող սուբվենցիաների վերաբերյալ` ըստ բյուջետային գլխավոր կարգադրիչների, ծրագրերի, միջոցառումների և կատարողների
A5: (հազար դրամ)
A7: Ծրագրային դասիչը | C7: Հատկացումների տրամադրման նպատակները և բյուջետային գլխավոր կարգադրիչների, ծրագրերի, միջոցառումների և կատարող պետական մարմնի անվանումները | D7: Տարեկան պլան¹ | E7: Տարեկան ճշտված պլան² | F7: Փաստ | G7: Կատարման % ճշտված պլանի նկատմամբ
A8: Ծրագիր | B8: Միջոցառում
C9: Ընդամենը | D9: =+D11+D81 -> 31782682.5 | E9: =+E11+E81 -> 40337556 | F9: =+F11+F81 -> 39529598.61 | G9: =IF(F9=0," ",F9/E9) -> 0.9799700956
C10: այդ թվում`
A11: Ընթացիկ սուբվենցիաներ համայնքներին | D11: =+D12+D34+D69+D75 -> 7705582.7 | E11: =+E12+E34+E69+E75 -> 7700244.7 | F11: 7697720.7 | G11: =IF(F11=0," ",F11/E11) -> 0.9996722182
A12: ՀՀ տարածքային կառավարման և ենթակառուցվածքների նախարարություն | D12: =+D13+D18+D23 -> 6185008.6 | E12: =+E13+E18+E23 -> 6326250.6 | F12: 6326250.6 | G12: 1
A13: 1110 | C13: Այլընտրանքային աշխատանքային ծառայություն | D13: =D15 -> 7080 | E13: =E15 -> 8940 | F13: 8940 | G13: 1
C14: այդ թվում`
B15: 12001 | C15: Այլընտրանքային աշխատանքային ծառայողներին դրամական բավարարման և դրամական փոխհատուցման տրամադրում | D15: =+D17 -> 7080 | E15: =+E17 -> 8940 | F15: 8940 | G15: 1
C16: այդ թվում` ըստ կատարողների
C17: ՀՀ տարածքային կառավարման և ենթակառուցվածքների նախարարություն | D17: 7080 | E17: 8940 | F17: 8940 | G17: 1
A18: 1157 | C18: Քաղաքային զարգացում | D18: =+D20 -> 765928.6 | E18: =+E20 -> 765928.6 | F18: 765928.6 | G18: 1
C19: այդ թվում`
B20: 12025 | C20: Երևանի տարածքում ճանապարհային երթևեկության կարգավորման գծով պետության կողմից համայնքի ղեկավարին պատվիրակված լիազորությունների իրականացում | D20: =+D22 -> 765928.6 | E20: =+E22 -> 765928.6 | F20: 765928.6 | G20: 1
C21: այդ թվում` ըստ կատարողների
C22: ՀՀ տարածքային կառավարման և ենթակառուցվածքների նախարարություն | D22: 765928.6 | E22: 765928.6 | F22: 765928.6 | G22: 1
A23: 1212 | C23: Տարածքային զարգացում | D23: =+D25+D31 -> 5412000 | E23: =+E25+E31 -> 5551382 | F23: 5551382 | G23: 1
C24: այդ թվում`
B25: 12028 | C25: Երևան քաղաքին սուբվենցիաների տրամադրում` քաղաքային ենթակառուցվածքների պահպանման նպատակով | D25: =+D27 -> 5412000 | E25: =+E27 -> 5412000 | F25: =+F27 -> 5412000 | G25: 1
C26: այդ թվում` ըստ կատարողների
C27: ՀՀ տարածքային կառավարման և ենթակառուցվածքների նախարարություն | D27: =SUM(D28:D30) -> 5412000 | E27: =SUM(E28:E30) -> 5412000 | F27: 5412000 | G27: 1
C28: - Երևան քաղաքի փողոցների ճանապարհաշինարարական աշխատանքներ | D28: 3284000 | E28: 3284000 | F28: 3284000 | G28: 1
C29: - Երևան քաղաքի փողոցների արտաքին լուսավորության ծառայություններ | D29: 1500000 | E29: 1500000 | F29: 1500000 | G29: 1
C30: -Վերգետնյա էլեկտրատրանսպորտով ուղևորափոխադրումների ծառայությունների մատուցում | D30: 628000 | E30: 628000 | F30: 628000 | G30: 1
B31: 12029 | C31: Լաչինի միջանցքի արգելափակման հետևանքով Հայաստանի Հանրապետությունում Լեռնային Ղարաբաղի քաղաքացիներին կացարան տրամադրած կազմակերպություններին աջակցության տրամադրում | D31: =D33 -> 0 | E31: =E33 -> 139382 | F31: =F33 -> 139382 | G31: 1
C32: այդ թվում` ըստ կատարողների
C33: ՀՀ տարածքային կառավարման և ենթակառուցվածքների նախարարություն | D33: 0 | E33: 139382 | F33: 139382 | G33: 1
A34: ՀՀ կրթության, գիտության, մշակույթի և սպորտի նախարարություն | D34: =D35+D40+D45+D54 -> 1062557.4 | E34: =E35+E40+E45+E50+E54 -> 1065977.4 | F34: =F35+F40+F45+F50+F54 -> 1063453.4 | G34: 0.99763222
A35: 1075 | C35: Մշակութային ժառանգության ծրագիր | D35: =+D37 -> 297759.3 | E35: =+E37 -> 297759.3 | F35: 297759.3 | G35: 1
C36: այդ թվում`
B37: 11004 | C37: Թանգարանային ծառայություններ և ցուցահանդեսներ | D37: =+D39 -> 297759.3 | E37: =+E39 -> 297759.3 | F37: 297759.3 | G37: 1
C38: այդ թվում` ըստ կատարողների
C39: ՀՀ տարածքային կառավարման և ենթակառուցվածքների նախարարություն | D39: 297759.3 | E39: 297759.3 | F39: 297759.3 | G39: 1
A40: 1148 | C40: Արտադպրոցական դաստիարակության ծրագիր | D40: =+D42 -> 55863 | E40: =+E42 -> 55863 | F40: 55863 | G40: 1
C41: այդ թվում`
B42: 12001 | C42: Ուսումնամարզական գործընթացի իրականացում մարզադպրոցներում | D42: =+D44 -> 55863 | E42: =+E44 -> 55863 | F42: 55863 | G42: 1
C43: այդ թվում` ըստ կատարողների
C44: ՀՀ տարածքային կառավարման և ենթակառուցվածքների նախարարություն | D44: 55863 | E44: 55863 | F44: 55863 | G44: 1
A45: 1168 | C45: Արվեստների ծրագիր | D45: =+D47 -> 457064.6 | E45: =+E47 -> 457064.6 | F45: 457064.6 | G45: 1
C46: այդ թվում`
B47: 11003 | C47: Թատերական ներկայացումներ | D47: =+D49 -> 457064.6 | E47: =+E49 -> 457064.6 | F47: 457064.6 | G47: 1
C48: այդ թվում` ըստ կատարողների
C49: ՀՀ տարածքային կառավարման և ենթակառուցվածքների նախարարություն | D49: 457064.6 | E49: 457064.6 | F49: 457064.6 | G49: 1
A50: 1192 | C50: Կրթության որակի ապահովում | D50: =D51 -> 0 | E50: 3420 | F50: 2130.5 | G50: 0.6229532164
B51: 11022 | C51: Հանրակրթական հիմնական և նախադպրոցական ծրագրեր իրականացնող ուսումնական հաստատությունների հերթական ատեստավորման ենթակա ուսուցչի և մանկավարժի վերապատրաստում | D51: =D53 -> 0 | E51: =E53 -> 3420 | F51: =F53 -> 2130.5 | G51: =IF(F53=0," ",F53/E53) -> 0.6229532164
C52: այդ թվում` ըստ կատարողների
C53: ՀՀ Արմավիրի մարզպետի աշխատակազմ | D53: 0 | E53: 3420 | F53: 2130.5 | G53: 0.6229532164
A54: 1198 | C54: Մշակութային և գեղագիտական դաստիարակության ծրագիր | D54: =+D56 -> 251870.5 | E54: =+E56 -> 251870.5 | F54: 250636 | G54: 0.9950986717
C55: այդ թվում`
B56: 11005 | C56: Ազգային, փողային և լարային նվագարանների գծով ուսուցում | D56: =SUM(D58:D68) -> 251870.5 | E56: =SUM(E58:E68) -> 251870.5 | F56: 250636 | G56: 0.9950986717
C57: այդ թվում` ըստ կատարողների
C58: ՀՀ տարածքային կառավարման և ենթակառուցվածքների նախարարություն | D58: 60353.9 | E58: 60353.9 | F58: 60353.9 | G58: 1
C59: ՀՀ Արագածոտնի մարզպետարան | D59: 8715.4 | E59: 8715.4 | F59: 8715.4 | G59: 1
C60: ՀՀ Արարատի մարզպետարան | D60: 13290.9 | E60: 13290.9 | F60: 13290.9 | G60: 1
C61: ՀՀ Արմավիրի մարզպետարան | D61: 17866.5 | E61: 17866.5 | F61: 17866.5 | G61: 1
C62: ՀՀ Գեղարքունիքի մարզպետարան | D62: 20481.1 | E62: 20481.1 | F62: 20481.1 | G62: 1
C63: ՀՀ Լոռու մարզպետարան | D63: 16123.4 | E63: 16123.4 | F63: 16123.4 | G63: 1
C64: ՀՀ Կոտայքի մարզպետարան | D64: 27017.6 | E64: 27017.6 | F64: 27017.5 | G64: 0.9999962987
C65: ՀՀ Շիրակի մարզպետարան | D65: 40305.1 | E65: 40305.1 | F65: 39070.7 | G65: 0.9693736028
C66: ՀՀ Սյունիքի մարզպետարան | D66: 19827.4 | E66: 19827.4 | F66: 19827.4 | G66: 1
C67: ՀՀ Վայոց ձորի մարզպետարան | D67: 4793.5 | E67: 4793.5 | F67: 4793.5 | G67: 1
C68: ՀՀ Տավուշի մարզպետարան | D68: 23095.7 | E68: 23095.7 | F68: 23095.7 | G68: 1
A69: ՀՀ աշխատանքի և սոցիալական հարցերի նախարարություն | D69: =+D70 -> 150000 | E69: =+E70 -> 0 | F69: 0
A70: 1088 | C70: Զբաղվածության ծրագիր | D70: =+D72 -> 150000 | E70: =+E72 -> 0 | F70: 0
C71: այդ թվում`
B72: 12011 | C72: Վարձատրվող հասարակական աշխատանքների կազմակերպման միջոցով գործազուրկների ժամանակավոր զբաղվածության ապահովում | D72: =+D74 -> 150000 | E72: =+E74 -> 0 | F72: 0
C73: այդ թվում` ըստ կատարողների
C74: ՀՀ աշխատանքի և սոցիալական հարցերի նախարարության միասնական սոցիալական ծառայություն | D74: 150000 | E74: 0 | F74: 0
A75: ՀՀ շրջակա միջավայրի նախարարություն | D75: =D76 -> 308016.7 | E75: =E76 -> 308016.7 | F75: 308016.7 | G75: 1
A76: 1186 | C76: Բնագիտական նմուշների պահպանություն և ցուցադրություն | D76: =+D78 -> 308016.7 | E76: =+E78 -> 308016.7 | F76: 308016.7 | G76: 1
C77: այդ թվում`
B78: 11002 | C78: Կենդանաբանական այգու ցուցադրություններ | D78: =+D80 -> 308016.7 | E78: =+E80 -> 308016.7 | F78: 308016.7 | G78: 1
C79: այդ թվում` ըստ կատարողների
C80: ՀՀ տարածքային կառավարման և ենթակառուցվածքների նախարարություն | D80: 308016.7 | E80: 308016.7 | F80: 308016.7 | G80: 1
A81: Կապիտալ սուբվենցիաներ համայնքներին | D81: =D83+D613 -> 24077099.8 | E81: =E83+E613 -> 32637311.3 | F81: =F83+F613 -> 31831877.91 | G81: 0.975321699
B82: այդ թվում`
A83: ՀՀ տարածքային կառավարման և ենթակառուցվածքների նախարարություն | D83: =+D84+D89 -> 23474726 | E83: =+E84+E89 -> 32034937.5 | F83: =+F84+F89 -> 31335909.52 | G83: 0.9781791994
A84: 1157 | C84: Քաղաքային զարգացում | D84: =+D86 -> 600000 | E84: =+E86 -> 364000 | F84: 229014.26 | G84: 0.6291600549
C85: այդ թվում` | G85: =IF(F85=0," ",F85/E85) -> 
B86: 12006 | C86: Եվրոպական ներդրումային բանկի աջակցությամբ իրականացվող Երևանի էներգաարդյունավետության ծրագրին պետական աջակցություն | D86: =+D88 -> 600000 | E86: =+E88 -> 364000 | F86: 229014.26 | G86: 0.6291600549
C87: այդ թվում` ըստ կատարողների
C88: ՀՀ տարածքային կառավարման և ենթակառուցվածքների նախարարություն | D88: 600000 | E88: 364000 | F88: 229014.26 | G88: 0.6291600549
A89: 1212 | C89: Տարածքային զարգացում | D89: =+D91+D597+D610 -> 22874726 | E89: =+E91+E597+E610 -> 31670937.5 | F89: =+F91+F597+F610 -> 31106895.26 | G89: 0.9821905417
C90: այդ թվում`
B91: 12007 | C91: ՀՀ մարզերին սուբվենցիաների տրամադրում՛ ենթակառուցվածքների զարգացման նպատակով | D91: =D93+D94+D116+D170+D226+D299+D367+D436+D473+D537+D560 -> 22000000 | E91: =E93+E94+E116+E170+E226+E299+E367+E436+E473+E537+E560 -> 30828046.9 | F91: =F93+F94+F116+F170+F226+F299+F367+F436+F473+F537+F560 -> 30270866.07 | G91: 0.9819261717
C92: այդ թվում` ըստ կատարողների
C93: ՀՀ կառավարություն | D93: 22000000 | E93: 0 | F93: 0
C94: ՀՀ Արագածոտնի մարզպետի աշխատակազմ | D94: =SUM(D95:D115) -> 0 | E94: =SUM(E95:E115) -> 2148095.2 | F94: =SUM(F95:F115) -> 2147295.965 | G94: 0.9996279332
C95: Համայնքի խմելու ջրի ջրագծի ցանցի հիմնանորոգում և քայքայված հատվածների փոխարինման աշխատանքներ | D95: 0 | E95: 3496.9 | F95: 3496.9 | G95: 1
C96: Համայնքի Նորաշեն, Գեղադիր, Հնաբերդ, Գեղաձոր, Բերքառատ բնակավայրերի գազաֆիկացման աշխատանքներ | D96: 0 | E96: 203339.4 | F96: 203339.4 | G96: 1
C97: Համայնքի Լուսակն բն․ խմելու ջրագծի կառուցման աշխատանքներ | D97: 0 | E97: 6468 | F97: 6468 | G97: 1
C98: Համայնքի Արտաշավան բն. «Կակաչ մանկապարտեզ» ՀՈԱԿ-ի շենքի հիմնանորոգման և բակային տարածքների բարեկարգման աշխատանքներ | D98: 0 | E98: 134050 | F98: 133385.665 | G98: 0.9950441253
C99: Մաստարա համայնքի 8-րդ փողոց, 8-րդ հասցեում գտնվող «Միջոցառման տան» տարածքի ցանկապատի կառուցման աշխատանքներ | D99: 0 | E99: 4721.6 | F99: 4721.6 | G99: 1
C100: Համայնքի Արագածավան, Արտենի և Լուսակն բնակավայրի ասֆալտբետոնե պատվածքի հիմնանորոգում /Արագածավան, Արտենի/ | D100: 0 | E100: 30682.1 | F100: 30682.1 | G100: 1
C101: Համայնքի ներհամայնքային «1-ին փող 2-րդ նրբ., 1-ին փող. 9-րդ փակուղու ձոր իջնող հատված, 3-րդ փող 4-րդ նրբ. մեջտեղի հատված, 4-րդ փող. 7-րդ նրբ.» փողոցների ասֆալտապատում և կապիտալ վերանորոգում | D101: 0 | E101: 11490.1 | F101: 11490.1 | G101: 1
C102: Թալին համայնքի Արագածավան, Արտենի և Լուսակն բն․ ասֆալտբետոնե պատվածքի հիմնանորոգում /Լուսակն բնակավայրի 4-րդ փողոց/ | D102: 0 | E102: 14293.5 | F102: 14293.5 | G102: 1
C103: Թալին համայնքի Թալին բնակավայրում Մ․ Խրիմյան փողոց, 6-րդ նրբանցք, թիվ 1 հողամաս հասցեում նոր գերեզմանատան կառուցման աշխատանքներ | D103: 0 | E103: 15514.8 | F103: 15514.8 | G103: 1
C104: Ապարան համայնքի Ապարան քաղաքի մի շարք փողոցների ասֆալտապատման աշխատանքներ, գյուղական բնակավայրերի մի շարք փողոցների ասֆալտապատման աշխատանքներ և Ապարան քաղաքի բակային տարածքների ասֆալտապատման աշխատանքներ /գյուղական բնակավայրերը՝ Երնջատափ, Ջրամբար, Արագած, Քուչակ, Արայի/ | D104: 0 | E104: 82978.4 | F104: 82978.4 | G104: 1
C105: Ապարան համայնքի Եղիպատրուշ վարչական տարածքի գազաֆիկացում | D105: 0 | E105: 83349.3 | F105: 83349.3 | G105: 1
C106: Աշտարակ համայնքի Աշտարակ քաղաքի, Աղձք, Արուճ, Ագարակ, Անտառուտ, Ավան, Արտաշավան, Բազմաղբյուր, Բյուրական, Լեռնարոտ, Կարբի, Կոշ, Ղազարավան, Նոր Ամանոս, Նոր Եդեսիա, Նոր Երզնկա, Ոսկեհատ, Ոսկեվազ, Ուշի, Ուջան, Սաղմոսավան, Սասունիկ, Փարպի, Օհանավան և Օշական բնակավայրերի փողոցների ասֆալտապատում | D106: 0 | E106: 749892.3 | F106: 749892.3 | G106: 1
C107: Թալին համայնքի Դաշտադեմ բնակավայրի ոռոգման համակարգի վերակառուցում | D107: 0 | E107: 132400.1 | F107: 132400.1 | G107: 1
C108: Թալին համայնքի Ծաղկասար, Մաստարա բն. ասֆալտբետոնե ծածկույթի հիմնանորոգում | D108: 0 | E108: 108067.6 | F108: 108067.6 | G108: 1
C109: Աշտարակ համայնքի Աշտարակ, Աղձք, Բյուրական, Արագածոտն և Օրգով Բն․ գազաֆիկացում | D109: 0 | E109: 105433.2 | F109: 105433.2 | G109: 1
C110: Ալագյազ համայնքի Ճարճակիս բն․ գազաֆիկացում | D110: 0 | E110: 49708.9 | F110: 49708.9 | G110: 1
C111: Ալագյազ համայնքիԱլագյազ, Ջամշլու, Սադունց և Շենկանի բն․ գերեզմանատների ցանկապատում | D111: 0 | E111: 21814.1 | F111: 21679.2 | G111: 0.9938159264
C112: Ապարան համայնքի Արագած եւ Շենավան բնակավայրերում նոր մանկապարտեզի կառուցում /Շենավան/ | D112: 0 | E112: 197919.8 | F112: 197919.8 | G112: 1
C113: Թալին համայնքի Եղնիկ, Կաքավաձոր, Ն. Բազմաբերդ բն. փողոցների նորոգում՝ սալարկմամբ | D113: 0 | E113: 73152.3 | F113: 73152.3 | G113: 1
C114: Աշտարակ համայնքի Աշտարակ եւ Բազմաղբյուր բն. Մարզադաշտերի հիմնանորոգում եւ տարածքների բարեկարգում | D114: 0 | E114: 93561.6 | F114: 93561.6 | G114: 1
C115: Մեծաձոր համայնքի Մեծաձոր եւ Օթևան բն. ներհամայնքային փողոցների նորոգում | D115: 0 | E115: 25761.2 | F115: 25761.2 | G115: 1
C116: ՀՀ Արարատի մարզպետի աշխատակազմ | D116: =SUM(D117:D169) -> 0 | E116: =SUM(E117:E169) -> 4636352.4 | F116: =SUM(F117:F169) -> 4327538.722 | G116: 0.9333929669
C117: Մասիս համայնքի Մասիս քաղաքում մանկապատեզի կառուցում (թիվ 3 մանկապարտեզ) | D117: 0 | E117: 138254 | F117: 124812.59 | G117: 0.9027774242
C118: Մասիս համայնքի Այնթապ և Զորակ բնակավայրերի փողոցների նորոգում՝ ասֆալտապատմամբ /անվան փոփոխություն Ձորակը Զորակով/ | D118: 0 | E118: 79324.6 | F118: 79324.6 | G118: 1
C119: Արտաշատ համայնքի Այգեպատ, Մխչյան, Շահումյան, Բերքանուշ, Բաղրամյան, Ազատավան, Այգեստան, Դեղձուտ, Բերդիկ, Գետազատ, Մրգանուշ և Վարդաշեն բնակավայրերի ոռոգման համակարգերի կառուցում/նորոգում | D119: 0 | E119: 329640 | F119: 326995.675 | G119: 0.9919781428
C120: Արտաշատ համայնքի Արտաշատ, Այգեպատ, Բերքանուշ, Գետազատ, Կանաչուտ, Նշավան բնակավայրերի գազիֆիկացման աշխատանքներ | D120: 0 | E120: 35208 | F120: 35208 | G120: 1
C121: Արտաշատ համայնքի Աբովյան, Դվին, Բարձրաշեն, Վարդաշեն, Նշավան, Արևշատ, Դիտակ, Դեղձուտ բնակավայրերի փողոցների նորոգման, ասֆալտապատման աշխատանքներ | D121: 0 | E121: 245070 | F121: 236180.391 | G121: 0.9637262456
C122: Արտաշատ համայնքի հասարակական շենքերի /մշակույթի տուն, համայնքային կենտրոններ և այլն/ վերանորոգման աշխատանքներ | D122: 0 | E122: 24806.6 | F122: 24778.32 | G122: 0.9988599808
C123: Արարատ համայնքի Արարատ քաղաքի ՈԿՖ Բանավանի դրենաժային համակարգի կառուցում | D123: 0 | E123: 55808.1 | F123: 55808.1 | G123: 1
C124: Վեդի համայնքի Վեդի քաղաքային, Գինեվետ, Նոր Ուղի, Արալեզ, Այգավան և Փոքր Վեդի բնակավայրերի գազիֆիկացման աշխատանքներ | D124: 0 | E124: 45864.9 | F124: 45864.5 | G124: 0.9999912787
C125: Արտաշատ համայնքի բազմաբնակարան շենքերի ընդհանուր բաժնային սեփականության գույքի նորոգում, այդ թվում՝ էներգախնայող միջոցառումների կիրառում | D125: 0 | E125: 175497 | F125: 175497 | G125: 1
C126: Արտաշատ համայնքի բնակավայրերի ոռոգման համակարգերի կառուցում/նորոգում / Արաքսավան, Դիմիտրով և Հովտաշեն բնակավայրերի/ | D126: 0 | E126: 96300 | F126: 96299.999 | G126: 0.9999999896
C127: Արարատ համայնքի Սուրենավան, Արմաշ և Երասխ բնակավայրերի գազատարի կառուցում | D127: 0 | E127: 90903.8 | F127: 90903.8 | G127: 1
C128: Արարատ համայնքի Արարատ քաղաքի Սալակիթներ փողոցի, Սուրենավան բնակավայրի, 5 մուտքերի, Զանգակատուն /2 փուլ/ և Պարույր Սևակ բնակավայրերի կենտրոնական փողոցների վերանորոգում ասֆալտապատմամբ /Սուրենավան/ | D128: 0 | E128: 41250 | F128: 41249.953 | G128: 0.9999988606
C129: Վեդի համայնքի Լուսաշող և Փոքր Վեդի բնակավայրերի փողոցների ասֆալտապատում | D129: 0 | E129: 32716.2 | F129: 32715.5 | G129: 0.9999786039
C130: Արտաշատ համայնքի բազմաբնակարան շենքերի ընդհանուր բաժնային սեփականության գույքի նորոգում, այդ թվում՝ էներգախնայող միջոցառումների կիրառում | D130: 0 | E130: 3717 | F130: 3717 | G130: 1
C131: Արարատ համայնքի Ավշար բնակավայրի մանկապարտեզի 3-րդ և 4-րդ մասնաշենքերի, ապաստարանի կառուցում և հարակից տարածքի բարեկարգում | D131: 0 | E131: 172270 | F131: 149729.585 | G131: 0.8691564695
C132: Արարատ համայնքի Սուրենավան, Արմաշ և Երասխ բնակավայրերի գազատարի կառուցում | D132: 0 | E132: 5486 | F132: 5486 | G132: 1
C133: Արտաշատ համայնքի Նորաշեն, Նարեկ, Վ. Արտաշատ, Քաղցրաշեն, Մրգավան, Դալար, Ազատավան, Մխչյան բնակավայրերի փողոցների նորոգման, ասֆալտապատման աշխատանքներ | D133: 0 | E133: 208250 | F133: 206440.999 | G133: 0.9913133205
C134: Արարատ համայնքի Նոյակերտ, Պարույր Սևակ, Արմաշ և Ավշար բնակավայրերի ջրամատակարարում /Նոյակերտ/ | D134: 0 | E134: 4536 | F134: 4536 | G134: 1
C135: Արարատ համայնքի Կայարանային փ., Կայարանային նրբ., Գայի փ.հատված, Իսակով փ., Իսահակյան փ. հատված, Շ. Գրիգորյան փ., Սայաթ-Նովա փ., Օղակաձև փ., Արարատյան փ., Պ. Սևակ փ. հատված, հաղթանակի փ. հատված, Րաֆֆի փ. հատված, Թևոսյան փ., Կոլխոզնիկների փ. հատված փողոցների ասֆալտապատման աշխատանքներ /2-րդ փուլ/ | D135: 0 | E135: 38842.2 | F135: 38842.2 | G135: 1
C136: Արտաշատ համայնքի Ազատավան, Բարձրաշեն, Դալար, Դեղձուտ, Դիտակ,Դվին, Նորաշեն, Քաղցրաշեն, Վ․ Արտաշատ, Վարդաշեն, ք․ Արտաշատ, Աբովյան, Արևշատ, Մխչյան, Նարեկ, Մրգավան, Նշավան բնակավայրերի փողոցների նորոգման, ասֆալտապատման աշխատանքներ /ք․ Արտաշատ/ | D136: 0 | E136: 297500 | F136: 297500 | G136: 1
C137: Արտաշատ համայնքի կոմունալ սպասարկման կարիքների համար մեքենասարքավորումների և տեխնիկայի ձեռքբերում | D137: 0 | E137: 48474.3 | F137: 48474.3 | G137: 1
C138: Արարատ համայնքի Արարատ քաղաքի Սալակիթներ փողոցի,Սուրենավան բնակավայրի, 5 մուտքերի, Զանգակատուն և Պարույր Սևակ բնակավայրերի կենտրոնական փողոցների վերանորոգում ասֆալտապատմամբ (Զանգակատուն) | D138: 0 | E138: 83633.2 | F138: 83623.311 | G138: 0.9998817575
C139: Արարատ համայնքի Սուրենավան, Արմաշ, Երասխ և Արմաշ բնակավայրերի գազիֆիկացում (Երասխ) | D139: 0 | E139: 28860 | F139: 28860 | G139: 1
C140: Արտաշատ համայնքի բնակավայրերի ոռոգման համակարգերի կառուցում/նորոգում (Աբովյան, Նշավան, Բյուրավան) | D140: 0 | E140: 96570 | F140: 96346.617 | G140: 0.9976868282
C141: Արարատ համայնքի Արարատ քաղաքի ՈԿՖ բանավանի և Պարույր Սևակ բնակավայրի ջրահեռացման համակարգի կառուցում (Պ․Սևակ) | D141: 0 | E141: 31296.6 | F141: 31296.595 | G141: 0.9999998402
C142: Արարատ համայնքի Նոյակերտ, Պարույր Սևակ, Արմաշ և Ավշար բնակավայրերի ջրամատակարարում (Պ․Սևակ, Արմաշ-1-ին փուլ) | D142: 0 | E142: 16667.7 | F142: 16667.695 | G142: 0.9999997
C143: Արտաշատ համայնքի բնակավայրերի ոռոգման համակարգերի կառուցում/նորոգում /Աբովյան, Նշավան, Բյուրավան/ | D143: 0 | E143: 9012 | F143: 9012 | G143: 1
C144: Արտաշատ համայնքի բնակավայրերի փողոցների նորոգման,ասֆալտապատման աշխատանքներ /ք. Արտաշատ/ | D144: 0 | E144: 25196.5 | F144: 25196.5 | G144: 1
C145: Արարատ համայնքի Արարատ քաղաքի ՈԿՖ բանավանի և Պարույր Սևակ բնակավայրի ջրահեռացման համակարգի կառուցում /ՈԿՖ բանավանի ջրահեռացման համակարգի կառուցում-1-ին փուլ/ | D145: 0 | E145: 47263.6 | F145: 47263.58 | G145: 0.9999995768
C146: Արարատ համայնքի Նոյակերտ, Պարույր Սևակ, Արմաշ և Ավշար բնակավայրերի ջրամատակարարում /Ավշար բնակավայրի ջրամատակարարում-1-ին փուլ | D146: 0 | E146: 38781.8 | F146: 38781.227 | G146: 0.999985225
C147: Արարատ համայնքի Արարատ քաղաքի, Զանգակատուն, Երասխ, Ավշար,Նոյակերտ և Ուրցալանջ բնակավայրերի ճանապարհների վերանորոգում ասֆալտապատմամբ/Ավշար և Ուրցալանջ բնակավայրերի փողոցների ասֆալտապատում/ | D147: 0 | E147: 63629.4 | F147: 63629.4 | G147: 1
C148: Արարատ համայնքի Սուրենավան, Արմաշ, Երասխ և Ավշար բնակավայրերի գազիֆիկացում /Սուրենավան /1-ին փուլ/ և Ավշար /1-ին փուլ// | D148: 0 | E148: 61493.5 | F148: 61492.6 | G148: 0.9999853643
C149: Վերին Դվին համայնքի փողոցների լուսավորության իրականացման աշխատանքներ | D149: 0 | E149: 16618.9 | F149: 16618.9 | G149: 1
C150: Վեդի համայնքի Վեդի քաղաքային և Լուսառատ բնակավայրի բազմաբնակարան բնակելի շենքերի տանիքների հիմնանորոգում | D150: 0 | E150: 106389 | F150: 106023 | G150: 0.9965597947
C151: Արարատ համայնքի Արարատ քաղաքի, Զանգակատուն, Երասխ, Ավշար,Նոյակերտ և Ուրցալանջ բնակավայրերի ճանապարհների վերանորոգում ասֆալտապատմամբ /Նոյակերտ բն․ Նոյ և Րաֆֆու փող․, Զանգակատուն բն․ կենտրոնական փող․ և Պ․ Սևակ փող․ 1-ին փակ․ 430 գծմ/ | D151: 0 | E151: 101484.1 | F151: 101484.093 | G151: 0.999999931
C152: Վեդի համայնքի Եղեգնավան և Վեդի քաղաքային բնակավայրերի փողոցների ասֆալտապատում | D152: 0 | E152: 289955.2 | F152: 289955.16 | G152: 0.999999862
C153: Արարատ համայնքի Սուրենավան, Արմաշ, Երասխ և Ավշար բնակավայրերի գազիֆիկացում /Արմաշ/ | D153: 0 | E153: 15986.1 | F153: 15986.1 | G153: 1
C154: Արարատ համայնքի Արարատ և Երասխ բնակավայրերում մարզադպրոցների կառուցում /Երասխ/ | D154: 0 | E154: 30943.9 | F154: 28515.887 | G154: 0.9215350037
C155: Արարատ համայնքի Արարատ քաղաքի Կոմիտասի 2ա, Խանջյան 26, 28, 62 և Շահումյան 22, 67 շենքերի տանիքների վերանորոգում | D155: 0 | E155: 30762.4 | F155: 29072 | G155: 0.9450498011
C156: Մասիս համայնքի բնակավայրերում փողոցային լուսավորության համակարգի կառուցում և նորոգում /1.Նիզամի, Դաշտավան, Ազատաշեն,Ռանչպար, Գետափնյա,3․ Մարմարաշեն, Արևաբույր,, Այնթապ, Ջրահովիտ, Նոր Խարբերդ, 5․ Արբաթ, Զորակ, Դաշտավան, , Դարակերտ, Նորամարգ, Խաչփար, Այնթապ, Սիս,Դարբնիկ | D156: 0 | E156: 302850.9 | F156: 247217.796 | G156: 0.8163020021
C157: Մասիս համայնքի Ազատաշեն, Արբաթ, Արևաբույր, Գետափնյա, Գեղանիստ, Դաշտավան, Դարակերտ, Դարբնիկ, Զորակ, Խաչփար, Հայանիստ, Մարմարաշեն, Նորաբաց, Նոր Կյուրին, Ջրահովիտ և Սայաթ-Նովա բնակավայրերում ոռոգման համակարգի կառուցում և նորոգում /Արևաբույր, Ջրահովիտ, Նոր Կյուրին/ | D157: 0 | E157: 280099 | F157: 278372.743 | G157: 0.9938369755
C158: Արտաշատ համայնքի Բարձրաշեն, Դեղձուտ, Դիմիտրով, Մրգանուշ, Մրգավետ, Քաղցրաշեն, Աբովյան, Այգեզարդ, Արաքսավան, Դիտակ, Դվին, Մխչյան, Մրգավան, Ոստան բնակավայրերի գազաֆիկացման աշխատանքներ | D158: 0 | E158: 41751.9 | F158: 41751.9 | G158: 1
C159: Արարատ համայնքի Արարատ քաղաքի, Զանգակատուն, Երասխ, Ավշար, Նոյակերտ և Ուրցալանջ բնակավայրերի ճանապարհների վերանորոգում ասֆալտապատմամբ /ք․ Արարատ, ՈԿՖ բանավան, Երասխ/ | D159: 0 | E159: 89647.9 | F159: 62152.102 | G159: 0.6932912204
C160: Մասիս համայնքում բնակավայրերի գազաֆիկացում /Այնթապ, Արբաթ, Դաշտավան, Դարակերտ, Նորաբաց, Սայաթ - Նովա/ | D160: 0 | E160: 60750 | F160: 27502 | G160: 0.4527078189
C161: Արարատ համայնքի բնակավայրերի մանկապաևտեզների համար գույքի ձեռքբերում | D161: 0 | E161: 61091 | F161: 61090.792 | G161: 0.9999965952
C162: Արարատ համայնքի Արարատ քաղաքային, Պարույր Սևակ, Ուրցալանջ, Զանգակատուն, Ավշար, Արմաշ, Նոյակերտ և Սուրենավան բնակավայրերի փողոցային լուսավորության համակարգի կառուցում և վերակառուցում արևային և լեդ լուսատուներով | D162: 0 | E162: 52071.6 | F162: 51044 | G162: 0.9802656342
C163: Մասիս համայնքում բնակավայրերի գազաֆիկացում․ Այնթապ, Նոր Կյուրին,Մարմարաշեն, Ջրահովիտ, Սիփանիկ, Սիս, Հովտաշատ, Ռանչպար,Նորամարգ, Այնթապ, Արբաթ, Դաշտավան, Դարակերտ, Նորաբաց, Սայաթ - Նովա/Նորամարգ բնակավայր/ | D163: 0 | E163: 79410.7 | F163: 22498.05 | G163: 0.2833125763
C164: Արտաշատ համայնքի Այգեպատ, Դիտակ, Դվին, Մրգանուշ, Մրգավետ, Նորաշեն,Քաղցրաշեն և Մխչյան բնակավայրերի ոռոգման համակարգի կառուցում /նորոգում/Մխչյան խորքային հոր,Մրգավետ/ | D164: 0 | E164: 55728 | F164: 55248.861 | G164: 0.9914021856
C165: Արարատ համայնքի Արարատ քաղաքի ՈԿՖ բանավանի մանկապարտեզի, Արարատ բնակավայրի մշակույթի տան և մանկապարտեզի, Պարույր Սևակ բնակավայրի մանկապարտեզի և Զանգակատուն բնակավայրի մանկապարտեզի տանիքներում ֆոտովոլտային կայանների տեղադրում | D165: 0 | E165: 45730.3 | F165: 43280.205 | G165: 0.9464229406
C166: Վեդի համայնքի Տափերական, Գինեվետ և Վանաշեն բնակավայրերի փողոցներում կոյուղագծի ցանցի կառուցում | D166: 0 | E166: 97048.7 | F166: 97045.212 | G166: 0.9999640593
C167: Այնթապ համայնքի փողոցների հիմնանորոգման և հարթեցման աշխատանքներ 4կմ | D167: 0 | E167: 9175.8 | F167: 9175.732 | G167: 0.9999925892
C168: Վեդի քաղաքային համայնքի Արարատյան 36, 38, 40, 42, Գայի 5, 7, 9, և Կասյան26/14, 26/15 ԲԲՇ-ների բակերի ասֆալտապատում և բարեկարգում | D168: 0 | E168: 24205.5 | F168: 23879.7 | G168: 0.9865402491
C169: Վեդի համայնքի Այգավան, Վանաշեն, Սիսավան, Գոռավան, Շաղափ և Գինեվետ բնակավայրերի խմելու ջրագծի կառուցում | D169: 0 | E169: 172528.5 | F169: 97090.452 | G169: 0.5627502239
C170: ՀՀ Արմավիրի մարզպետի աշխատակազմ | D170: =SUM(D171:D225) -> 0 | E170: =SUM(E171:E225) -> 2606287.5 | F170: =SUM(F171:F225) -> 2603296.314 | G170: 0.9988523192
C171: Վաղարշապատ համայնքի Էջմիածին բնակավայրի Տիգրան Մեծի և Սբ. Գրիգոր Լուսավորիչ փողոցների մայթերի հիմնանորոգում | D171: 0 | E171: =61501.4-1053.5 -> 60447.9 | F171: 60447.872 | G171: 0.9999995368
C172: Մեծամոր համայնքի Մեծամոր քաղաքի և և Արտաշար բնակավայրի խմելու ջրամատակարարման ցանցի կառուցում (Մեծամոր համայնքի Մեծամոր քաղաք) | D172: 0 | E172: 5494.7 | F172: 5494.7 | G172: 1
C173: Մեծամոր համայնքի Գետաշեն բնակավայրի փողոցների ց/ճնշման գազատարի կառուցում, Շենավան, Վարդանաշեն, Այգեշատ, Նոր Արմավիր, Եղեգնուտ, Ակնալիճ բնակավայրերի գազիֆիկացում (Ակնալիճ բնակավայրերի գազիֆիկացում) | D173: 0 | E173: 6691.5 | F173: 6664.5 | G173: 0.9959650303
C174: Մեծամոր համայնքի Տանձուտ բնակավայրի «Խնձորներ», Հայկավան բնակավայրի «Թավաբլուրի», Երասխահուն բնակավայրի «Ախմեյան» (Ակադեմիայի), Վարդանաշեն բնակավայրի «Դեղձեր», «Ժորժիկի», Զարթոնք բնակավայրի «Գործարանի բաց», «Գործարանի փակ», Արտաշար բնակավայրի «Ավազահանքի», «Խդոյի», Տարոնիկ բնակավայրի «Աղբանոցի», «Ցանկապատի», Մրգաշատ բնակավայրի «Ճլլիկներ», Արմավիր բնակավայրի «Նարյադի», Արգավանդ բնակավայրի «Թոփերի», Բամբակաշատ բնակավայրի «Պոպոքի», Արազափ բնակավայրի «Գուգուշի» խորքային հորերի վերակառուցում» | D174: 0 | E174: 143010.2 | F174: 143010.2 | G174: 1
C175: Փարաքար համայնքի Բաղրամյան գյուղի Շիրազի, Թումանյանի և Այգեգործների փողոցների, Պտղունք գյուղի Ագաթանգեղոս փողոցի, Մուսալեռ գյուղի Տիգրան Մեծ թաղամասի 1-ին, 2-րդ, 3-րդ, 4-րդ, 5-րդ, 6-րդ և 7-րդ փողոցների, Մերձավան գյուղի 1-ին, 2-րդ, 3-րդ և 4-րդ փողոցների, Այգեկ գյուղի 2-րդ և 3-րդ փողոցների, Փարաքար գյուղի Արցախ թաղամասի 1-ին, 2-րդ, 3-րդ, 4-րդ, 5-րդ, 6-րդ և Մհեր Մկրտչյան փողոցների գազիֆիկացում. 1) Բաղրամյան գյուղի Շիրազի, Թումանյանի և Այգեգործների փողոցների գազիֆիկացում, 2) Մերձավան գյուղի 1-ին, 2-րդ, 3-րդ և 4-րդ փողոցների գազիֆիկացում, 3) Այգեկ գյուղի 2-րդ և 3-րդ փողոցների գազիֆիկացում, 4) Փարաքար գյուղի Մհեր Մկրտչյան փողոցի գազիֆիկացում | D175: 0 | E175: 56638.5 | F175: 56638.49 | G175: 0.9999998234
C176: Արմավիր համայնքի Արմավիր քաղաքի թիվ 2 մանկապարտեզ ՀՈԱԿ-ի հիմնանորոգում, թիվ 3 և թիվ 7 մանկապարտեզ ՀՈԱԿ-ների ջեռուցման համակարգերի կառուցում, գազաֆիկացում, հին դռների և պատուհանների նորով փոխարինում, Մյասնիկյան գյուղի մանկապարտեզ ՀՈԱԿ-ի ջեռուցման համակարգի կառուցում և սանհանգույցի վերանորոգում, Լուկաշին գյուղի մանկապարտեզ ՀՈԱԿ-ի ջեռուցման համակարգի կառուցում, Սարդարապատ գյուղի մանկապարտեզ ՀՈԱԿ-ի հիմնանորոգում, գազաֆիկացում և ջեռուցման համակարգի կառուցում /Մյասնիկյան գյուղի մանկապարտեզ ՀՈԱԿ-ի ջեռուցման համակարգի կառուցում և սանհանգույցի վերանորոգում/ | D176: 0 | E176: =8742.1-508.9 -> 8233.2 | F176: 8233.176 | G176: 0.999997085
C177: Արաքս համայնքի Ջրառատ գյուղի Թումանյան, Վ.Մամիկոնյան, Իսահակյան փողոցների և Ակնաշեն գյուղի 18-րդ փողոցի գազիֆիկացում /Ջրառատ գյուղի Թումանյան, Վ.Մամիկոնյան, Իսահակյան փողոցներ/ | D177: 0 | E177: 30635.8 | F177: 30635.8 | G177: 1
C178: Մեծամոր համայնքի 2 թաղամաս 1 շենքի, 1 թաղամաս 13ա և 27 բազմաբնակարն շենքերի տանիքների հիմնանորոգում և 1 թաղամաս 4Բ1, 6Բ1, 8Բ1, 8Բ2 և 2Բ շենքերի վերելակների փոխարինում (վերելակների փոխարինում) | D178: 0 | E178: 16590 | F178: 16590 | G178: 1
C179: Մեծամոր համայնքի Գետաշեն բնակավայրի փողոցների ց/ճնշման գազատարի կառուցում, Շենավան, Վարդանաշեն, Այգեշատ, Նոր Արմավիր, Եղեգնուտ, Ակնալիճ բնակավայրերի գազաֆիկացում (Վարդանաշեն, Այգեշատ, Եղեգնուտ) | D179: 0 | E179: 19097.5 | F179: 19092.96 | G179: 0.9997622725
C180: Խոյ համայնքի Հայթաղ գյուղի մանկապարտեզի վերակառուցում և ձախ կողաճակատին կիպ միահարկ կցակառույց շինության իրականացում, Այգեշատ բնակավայրի մանկապարտեզի վերանորոգում (Այգեշատ) | D180: 0 | E180: =36643.1-717.5 -> 35925.6 | F180: 35925.557 | G180: 0.9999988031
C181: Բաղրամյան համայնքի Հուշակերտ գյուղի մանկապարտեզի սեյսմազինվածության բարձրացում և վերանորոգում | D181: 0 | E181: 21590.2 | F181: 21590.2 | G181: 1
C182: Մեծամոր համայնքի Մեծամոր և Արազափ մշակույթի տների վերանորոգում, Նոր Կեսարիա մշակույթի տան ջեռուցման համակարգի կառուցում, Մրգաշատ բնակավայրի երաժշտական դպրոցի վերանորոգում և ջեռուցման համակարգի կառուցում, Նալբանդյան բնակավայրերում երաժշտական դպրոցի ջեռուցման համակարգի կառուցում (Մեծամոր և Արազափ) | D182: 0 | E182: 12593.9 | F182: 12593.706 | G182: 0.9999845957
C183: Արաքս համայնքի Գայ գյուղի ջրահեռացման համակարգի մի մասի և ջրամատակարարման ցանցի, Ջրառատ գյուղի ջրամատակարարման ցանցի կառուցում (Գայի ջրահեռացում) | D183: 0 | E183: 10777.6 | F183: 10777.6 | G183: 1
C184: Արմավիր համայնքի թիվ 2 մանկապարտեզ ՀՈԱԿ-ի հիմնանորոգում, թիվ 3 և թիվ 7 մանկապարտեզ ՀՈԱԿ-ների ջեռուցման համակարգերի կառուցում, գազիֆիկացում, հին դռների և պատուհանների նորով փոխարինում, Մյասնիկյան գյուղի մանկապարտեզ ՀՈԱԿ-ի ջեռուցման համակարգի կառուցում և սանհանգույցի վերանորոգում, Լուկաշին գյուղի մանկապարտեզ ՀՈԱԿ-ի ջեռուցման համակարգի կառուցում, Սարդարապատ գյուղի մանկապարտեզ ՀՈԱԿ-ի հիմնանորոգում, գազիֆիկացում և ջեռուցման համակարգի կառուցում (Արմավիր բն. թիվ 3, թիվ 7 մանկ., Լուկաշին գյուղի մանկապարտեզ) | D184: 0 | E184: 2466 | F184: 2466 | G184: 1
C185: Վաղարշապատ համայնքի Էջմիածին բնակավայրի թիվ 14 «Ձնծաղիկ» մանկապարտեզի հիմնանորոգում և Ոսկեհատ բնակավայրի մանկապարտեզի վերանորոգում (Ոսկեհատ) | D185: 0 | E185: 11443.9 | F185: 11443.891 | G185: 0.9999992136
C186: Մեծամոր համայնքի Գետաշեն բնակավայրի փողոցների ց/ճնշման գազատարի կառուցում, Շենավան, Վարդանաշեն, Այգեշատ, Նոր Արմավիր, Եղեգնուտ, Ակնալիճ բնակավայրերի գազիֆիկացում /Գետաշեն/ | D186: 0 | E186: 18807.7 | F186: 18807.7 | G186: 1
C187: Բաղրամյան համայնքի Դալարիկ բնակավայրի Օրջոնիկիձեի, Երիտասարդական, Գորկու և Շահումյան փողոցներում ոռոգման ներտնտեսային բաց և փակ ցանցի կառուցում (2021թ.) | D187: 0 | E187: 1488.4 | F187: 1488.379 | G187: 0.9999858909
C188: Խոյ համայնքի Գեղակերտ բնակավայրի վերականգնվող խորքային հորեր և ոռոգման ցանց (2021թ.) | D188: 0 | E188: 72321.1 | F188: 72321.1 | G188: 1
C189: Արաքս համայնքի Առատաշեն գյուղի մանկապարտեզի երկհարկանի մասնաշենքի կապիտալ վերանորոգում, Խորոնք գյուղի մանկապարտեզի շենքի կապիտալ վերանորոգում, Ջրառատ գյուղի մանկապարտեզի շենքի կապիտալ վերանորոգում, ջեռուցման համակարգի կառուցում, Մեծամոր գյուղի Խ. Աբովյան փող. 1/2 հասցեում մանկապարտեզի շենքի հիմնանորոգման /վերանորոգման/ աշխատանքներ, Գայ գյուղի մանկապարտեզի շենքի կառուցում /Խորոնք գյուղի մանկապարտեզի շենքի կապիտալ վերանորոգում, Ջրառատ գյուղի մանկապարտեզի շենքի կապիտալ վերանորոգում, ջեռուցման համակարգի կառուցում, Մեծամոր գյուղի Խ. Աբովյան փող. 1/2 հասցեում մանկապարտեզի շենքի հիմնանորոգման /վերանորոգման/ աշխատանքներ, Գայ գյուղի մանկապարտեզի շենքի կառուցում/ | D189: 0 | E189: 326565.4 | F189: 326565.4 | G189: 1
C190: Վաղարշապատ համայնքի Էջմիածին բնակավայրի Չարենց թաղամասի հյուսիսային մասի կոյուղու կառուցում | D190: 0 | E190: 47820 | F190: 47820 | G190: 1
C191: Խոյ համայնքի Աղավնատուն գյուղի Բ. Ներսիսյան 2-րդ նրբ., Ս.Վիրաբյան, Երիտասարդական 3-րդ, Հարավ-Արևելյան 2-րդ փողոցների, Արշալույս գյուղի 27, 28, 29, 32-րդ փողոցների և Մոնթեավան գյուղի 1-ին և 7-րդ փողոցների գազիֆիկացում (Արշալույս գյուղի 27, 28, 29, 32-րդ փողոցների) | D191: 0 | E191: 21284.4 | F191: 21284.37 | G191: 0.9999985905
C192: Խոյ համայնքի Գեղակերտ գյուղում Մ. Սարյան, Մարշալ Բաղրամյան փողոցների և Մ. Մարշալ Բաղրամյան փողոցից մինչև մշակույթի տան հարակից տարածքի, Մոնթեավան գյուղում I-ին փողոցի (համայնքի կենտրոնական փողոց), Այգեշատ գյուղի Երիտասարդական և Մայիսյան փողոցների, Դողս գյուղում Դողս-Աղավնատուն տանող ճանապարհի, Լեռնամերձ գյուղի Բարեկամություն փողոցի (գերեզմաններ տանող ճանապարհ) ասֆալտապատման աշխատանքներ» (Մոնթեավան գյուղում I-ին փողոցի (համայնքի կենտրոնական փողոց) | D192: 0 | E192: 33724.1 | F192: 33724.1 | G192: 1
C193: Արմավիր համայնքի Արմավիր քաղաքի թիվ 2 մանկապարտեզ ՀՈԱԿ-ի հիմնանորոգում, թիվ 3 և թիվ 7 մանկապարտեզ ՀՈԱԿ-ների ջեռուցման համակարգերի կառուցում, գազիֆիկացում, հին դռների և պատուհանների նորով փոխարինում, Արաքս գյուղի մանկապարտեզի շենքի հիմնանորոգում, Մյասնիկյան գյուղի մանկապարտեզ ՀՈԱԿ-ի ջեռուցման համակարգի կառուցում և սանհանգույցի վերանորոգում, Լուկաշին գյուղի մանկապարտեզ ՀՈԱԿ-ի ջեռուցման համակարգի կառուցում, Սարդարապատ գյուղի մանկապարտեզ ՀՈԱԿ-ի հիմնանորոգում, գազիֆիկացում և ջեռուցման համակարգի կառուցում (Սարդարապատ գյուղի մանկապարտեզ ՀՈԱԿ-ի հիմնանորոգում, գազիֆիկացում և ջեռուցման համակարգի) | D193: 0 | E193: =150899.6-493.7 -> 150405.9 | F193: 150405.834 | G193: 0.9999995612
C194: Արմավիր համայնքի Այգեվան և Լենուղի գյուղերի ջրամատակարարման ցանցի վերակառուցում (Այգեվան/Լենուղի գյուղի ջրամատակարարման ցանցի վերակառուցում) | D194: 0 | E194: 54911.1 | F194: 54911.076 | G194: 0.9999995629
C195: Արմավիր համայնքի Արմավիր քաղաքի Մ. Գորկի փողոցի հիմնանորոգում | D195: 0 | E195: 67508.6 | F195: 67505.367 | G195: 0.9999521098
C196: Արաքս համայնքի Գայ բնակավայրի ջրահեռացման համակարգի վերակառուցում և ջրամատակարարման համակարգի վերակառուցում, Արաքս գյուղում ջրամատակարարման համակարգի վերակառուցում (2023թ.) | D196: 0 | E196: 13233.1 | F196: 13233.1 | G196: 1
C197: Բաղրամյան համայնքի Հուշակերտ գյուղի մանկապարտեզի սեյսմազինվածության բարձրացում և վերանորոգում | D197: 0 | E197: 50067.5 | F197: 50067.5 | G197: 1
C198: Բաղրամյան համայնքի Արգինա բնակավայրի Տիգրան Մեծ փողոցի և Աբովյան փողոցի ասֆալտապատում, Արտամետ բնակավայրի Գարեգին Նժդեհ փողոցի և Գարեգին Նժդեհ փողոցը Արաբոյի փողոցին կապող հատվածի և Արաբոյի փողոցի ասֆալտապատում, Բագարան բնակավայրի Գևորգ Մարզպետունի փողոցի ասֆալտապատում, Բաղրամյան բնակավայրի Սարի Թաղ փողոցի սկզբնամասի և Սարի Թաղ փողոցի վերջնամասի ասֆալտապատում, Դալարիկ բնակավայրի Մյասնիկյան փողոցի և դպրոցի բակի և Օրջոնիկիձե փողոցի ասֆալտապատում, Երվանդաշատ բնակավայրի Բերդակի փողոցի և Խաչին Տակ փողոցի ասֆալտապատում, Լեռնագոգ բնակավայրի 1-ին փողոցի և 12-րդ փողոցի ասֆալտապատում, Հուշակերտ բնակավայրի 2-րդ փողոցի և 5-րդ փողոցի ասֆալտապատում, Շենիկ բնակավայրի Մ. Մելքոնյան փողոցի վերևի հատվածի և Մ. Մելքոնյան փողոցի ներքևի հատվածի ասֆալտապատում, Վանանդ բնակավայրի Պ. Սևակ փողոցի, Պ. Սևակ փողոցի մի հատվածի և Հ. Քոչար փողոցի և Զ. Սահակյան փողոցի ասֆալտապատում, Տալվորիկ բնակավայրի Գևորգ Չավուշի փողոցի ասֆալտապատում, Քարակերտ բնակավայրի Երկաթուղայինների փողոցի, Բաբաջանյան փողոցի, գերեզմանատան ճանապարհի և Սարյան փողոցի ասֆալտապատում /Դալարիկ բնակավայրի Մյասնիկյան փողոցի և դպրոցի բակի և Օրջոնիկիձե փողոցի ասֆալտապատում/ | D198: 0 | E198: 19544.7 | F198: 19544.7 | G198: 1
C199: Արաքս համայնքի Ապագա գյուղի այգու կառուցապատում, Արաքս գյուղի Դրոյի փող. 3 հասցեում գտնվող մանկապարտեզի բակի և մշակույթի տան հարակից այգու բարեկարգում | D199: 0 | E199: 3967 | F199: 3966.996 | G199: 0.9999989917
C200: Արաքս համայնքի Ապագա գյուղի այգու կառուցապատում, Արաքս գյուղի Դրոյի փող. 3 հասցեում գտնվող մանկապարտեզի բակի և մշակույթի տան հարակից այգու բարեկարգում» /Ապագա գյուղի այգու կառուցապատում/ | D200: 0 | E200: 5488.1 | F200: 5488.1 | G200: 1
C201: Արաքս համայնքի Գայ գյուղի համայնքապետարանի շենքի և Ապագա գյուղի մարզադպրոցի շենքի վերանորոգում /Ապագա գյուղի մարզադպրոցի շենքի վերանորոգում/ | D201: 0 | E201: 7058.2 | F201: 7058.164 | G201: 0.9999948995
... 419 more rows
